fUST/lending_fUST_20250208
["ID","MTS","AMOUNT","RATE_DAILY","PERIOD"]
[352108162,1738950645880,-9338.0,0.00011232,2]
[352108164,1738950645889,-888.32,0.00011232,2]
[352108166,1738950645899,-500.0,0.00011232,2]
[352108168,1738950645909,-500.0,0.00011232,2]
[352108170,1738950645918,-500.0,0.00011232,2]
[352108172,1738950645927,-500.0,0.00011232,2]
[352108174,1738950645937,-500.0,0.00011232,2]
[352108176,1738950645947,-4366.96,0.00011232,2]
[352108178,1738950645957,-500.0,0.00011232,2]
[352108180,1738950645966,-529.78,0.00011232,2]
[352108182,1738950645975,-278.31945059,0.00011232,2]
[352108184,1738950645986,-234.99353,0.00011232,2]
[352108186,1738950645995,-500.0,0.00011232,2]
[352108188,1738950646005,-500.0,0.00011232,2]
[352108190,1738950646014,-500.0,0.00011232,2]
[352108192,1738950646024,-500.0,0.00011232,2]
[352108194,1738950646034,-531.59,0.00011232,2]
[352108196,1738950646043,-500.0,0.00011232,2]
[352108198,1738950646054,-234.99353,0.00011232,2]
[352108200,1738950646063,-501.57415247,0.00011232,2]
[352108202,1738950646072,-500.0,0.00011232,2]
[352108204,1738950646082,-500.0,0.00011232,2]
[352108206,1738950646091,-500.0,0.00011232,2]
[352108208,1738950646101,-500.0,0.00011232,2]
[352108210,1738950646110,-522.44,0.00011232,2]
[352108212,1738950646120,-500.0,0.00011232,2]
[352108214,1738950646129,-500.0,0.00011232,2]
[352108216,1738950646139,-500.0,0.00011232,2]
[352108218,1738950646148,-500.0,0.00011232,2]
[352108220,1738950646157,-500.0,0.00011232,2]
[352108222,1738950646167,-206.22422792,0.00011232,2]
[352108224,1738950646176,-500.0,0.00011232,2]
[352108226,1738950646187,-500.0,0.00011232,2]
[352108228,1738950646196,-500.0,0.00011232,2]
[352108230,1738950646206,-1156.96,0.00011232,2]
[352108233,1738950646217,-500.0,0.00011232,2]
[352108234,1738950646226,-500.0,0.00011232,2]
[352108237,1738950646237,-525.76,0.00011232,2]
[352108238,1738950646246,-500.0,0.00011232,2]
[352108241,1738950646256,-1899.91,0.00011232,2]
[352108243,1738950646266,-500.0,0.00011232,2]
[352108245,1738950646275,-2200.03,0.00011232,2]
[352108247,1738950646284,-500.0,0.00011232,2]
[352108249,1738950646294,-1015.7,0.00011232,2]
[352108251,1738950646303,-500.0,0.00011232,2]
[352108253,1738950646313,-633.6,0.00011232,2]
[352108255,1738950646322,-500.0,0.00011232,2]
[352108256,1738950646331,-500.0,0.00011232,2]
[352108258,1738950646340,-500.0,0.00011232,2]
[352108260,1738950646349,-500.97557477,0.00011232,2]
[352108262,1738950646359,-500.0,0.00011232,2]
[352108264,1738950646368,-500.0,0.00011232,2]
[352108267,1738950646378,-2217.79,0.00011232,2]
[352108269,1738950646388,-500.0,0.00011232,2]
[352108270,1738950646399,-500.0,0.00011232,2]
[352108273,1738950646413,-588.55,0.00011232,2]
[352108274,1738950646422,-500.0,0.00011232,2]
[352108276,1738950646431,-42882.94,0.00011232,2]
[352108279,1738950646441,-458.54865058,0.00011232,2]
[352108281,1738950646455,-500.0,0.00011232,2]
[352108283,1738950646475,-500.0,0.00011232,2]
[352108285,1738950646487,-5616.92,0.00011232,2]
[352108286,1738950646497,-151.0,0.00011232,2]
[352108289,1738950646507,-500.0,0.00011232,2]
[352108291,1738950646517,-500.0,0.00011232,2]
[352108292,1738950646527,-961.33,0.00011232,2]
[352108294,1738950646536,-500.0,0.00011232,2]
[352108296,1738950646546,-793.477982,0.00011232,2]
[352108298,1738950646556,-788.54,0.00011232,2]
[352108300,1738950646565,-2028.94,0.00011232,2]
[352108302,1738950646575,-14404.15,0.00011232,2]
[352108304,1738950646584,-793.477982,0.00011232,2]
[352108306,1738950646593,-500.0,0.00011232,2]
[352108308,1738950646602,-500.0,0.00011232,2]
[352108310,1738950646611,-7043.68,0.00011232,2]
[352108312,1738950646621,-2546.25,0.00011232,2]
[352108314,1738950646632,-500.0,0.00011232,2]
[352108316,1738950646641,-500.0,0.00011232,2]
[352108318,1738950646652,-500.0,0.00011232,2]
[352108320,1738950646663,-500.0,0.00011232,2]
[352108322,1738950646672,-500.0,0.00011232,2]
[352108324,1738950646682,-1043.44,0.00011232,2]
[352108326,1738950646691,-500.0,0.00011232,2]
[352108328,1738950646702,-5737.61,0.00011232,2]
[352108330,1738950646711,-500.0,0.00011232,2]
[352108333,1738950646721,-371.48801102,0.00011232,2]
[352108334,1738950646731,-2146.56,0.00011232,2]
[352108336,1738950646743,-500.0,0.00011232,2]
[352108338,1738950646752,-500.0,0.00011232,2]
[352108340,1738950646762,-500.0,0.00011232,2]
[352108342,1738950646771,-693.43,0.00011232,2]
[352108344,1738950646780,-500.0,0.00011232,2]
[352108346,1738950646790,-500.0,0.00011232,2]
[352108348,1738950646800,-2939.94,0.00011232,2]
[352108351,1738950646809,-500.0,0.00011232,2]
[352108352,1738950646819,-561.48157875,0.00011232,2]
[352108354,1738950646829,-500.0,0.00011232,2]
[352108357,1738950646839,-572.15,0.00011232,2]
[352108359,1738950646849,-500.0,0.00011232,2]
[352108375,1738950646992,-500.0,0.00011232,2]
[352108377,1738950647003,-1274.171882,0.00011232,2]
[352108379,1738950647013,-500.0,0.00011232,2]
[352108381,1738950647023,-500.0,0.00011232,2]
[352108383,1738950647032,-1608.85,0.00011232,2]
[352108385,1738950647042,-2793.36,0.00011232,2]
[352108387,1738950647052,-500.0,0.00011232,2]
[352108389,1738950647062,-519.99234604,0.00011232,2]
[352108391,1738950647072,-500.0,0.00011232,2]
[352108393,1738950647081,-1274.171882,0.00011232,2]
[352108395,1738950647090,-500.0,0.00011232,2]
[352108397,1738950647099,-500.0,0.00011232,2]
[352108399,1738950647112,-500.0,0.00011232,2]
[352108401,1738950647124,-398.653821,0.00011232,2]
[352108403,1738950647134,-6257.88,0.00011232,2]
[352108405,1738950647144,-289.85139457,0.00011232,2]
[352108407,1738950647154,-398.653821,0.00011232,2]
[352108409,1738950647164,-500.0,0.00011232,2]
[352108411,1738950647174,-500.0,0.00011232,2]
[352108413,1738950647183,-754.7,0.00011232,2]
[352108415,1738950647192,-500.0,0.00011232,2]
[352108417,1738950647203,-1614.6,0.00011232,2]
[352108419,1738950647213,-500.0,0.00011232,2]
[352108421,1738950647223,-500.0,0.00011232,2]
[352108422,1738950647236,-500.0,0.00011232,2]
[352108423,1738950647246,-500.0,0.00011232,2]
[352108424,1738950647256,-500.0,0.00011232,2]
[352108425,1738950647266,-500.0,0.00011232,2]
[352108426,1738950647275,-500.0,0.00011232,2]
[352108427,1738950647286,-3365.412364,0.0001127,2]
[352108428,1738950647296,-500.0,0.00011273,2]
[352108429,1738950647307,-500.0,0.00011273,2]
[352108430,1738950647317,-501.85124374,0.00011273,2]
[352108431,1738950647327,-500.0,0.00011273,2]
[352108433,1738950647337,-151.0,0.000113,2]
[352108435,1738950647347,-151.0,0.000113,2]
[352108437,1738950647357,-151.0,0.000113,2]
[352108439,1738950647367,-500.0,0.00011368,2]
[352108441,1738950647376,-511.34359771,0.00011368,2]
[352108443,1738950647385,-18928.19,0.00011368,2]
[352108445,1738950647395,-1612.79,0.00011368,2]
[352108447,1738950647406,-500.0,0.00011368,2]
[352108449,1738950647416,-910.53,0.00011368,2]
[352108451,1738950647427,-500.0,0.00011368,2]
[352108454,1738950647438,-151.0,0.00011368,2]
[352108456,1738950647449,-1274.171882,0.00011368,2]
[352108458,1738950647461,-1274.171882,0.00011368,2]
[352108460,1738950647470,-500.0,0.00011368,2]
[352108462,1738950647479,-10186.62,0.00011368,2]
[352108464,1738950647491,-151.0,0.00011369,2]
[352108466,1738950647501,-151.0,0.00011369,2]
[352108468,1738950647511,-500.0,0.00011369,2]
[352108470,1738950647521,-500.0,0.00011369,2]
[352108472,1738950647530,-500.0,0.00011369,2]
[352108474,1738950647539,-504.73,0.00011369,2]
[352108476,1738950647549,-500.0,0.00011369,2]
[352108478,1738950647559,-500.0,0.00011369,2]
[352108480,1738950647568,-500.0,0.00011369,2]
[352108482,1738950647578,-500.0,0.00011369,2]
[352108484,1738950647587,-500.0,0.00011369,2]
[352108486,1738950647597,-500.0,0.00011369,2]
[352108488,1738950647608,-500.0,0.00011369,2]
[352108490,1738950647618,-151.0,0.00011369,2]
[352108492,1738950647628,-500.0,0.00011369,2]
[352108494,1738950647638,-500.0,0.00011369,2]
[352108496,1738950647650,-2355.096345,0.00011369,2]
[352108498,1738950647662,-2355.096345,0.00011369,2]
[352108500,1738950647672,-500.0,0.00011369,2]
[352108502,1738950647683,-500.0,0.00011369,2]
[352108504,1738950647692,-632.82,0.00011369,2]
[352108506,1738950647702,-274.656294,0.00011369,2]
[352108508,1738950647711,-500.0,0.00011369,2]
[352108510,1738950647722,-274.656294,0.00011369,2]
[352108512,1738950647732,-500.0,0.00011369,2]
[352108514,1738950647744,-160.61,0.00011369,2]
[352108516,1738950647754,-500.0,0.00011369,2]
[352108518,1738950647764,-500.0,0.00011369,2]
[352108520,1738950647774,-500.0,0.00011369,2]
[352108522,1738950647785,-500.0,0.00011369,2]
[352108524,1738950647795,-331.05,0.00011369,2]
[352108526,1738950647805,-500.0,0.00011369,2]
[352108528,1738950647816,-151.18142,0.00011369,2]
[352108530,1738950647826,-500.0,0.00011369,2]
[352108532,1738950647837,-500.0,0.00011369,2]
[352108534,1738950647848,-163.289369,0.00011369,2]
[352108536,1738950647859,-500.0,0.00011369,2]
[352108538,1738950647871,-151.0,0.00011369,2]
[352108540,1738950647881,-351.26623,0.00011369,2]
[352108542,1738950647891,-500.0,0.00011369,2]
[352108544,1738950647901,-351.26623,0.00011369,2]
[352108546,1738950647912,-1436.5,0.00011369,2]
[352108548,1738950647922,-1000.82,0.00011369,2]
[352108550,1738950647931,-500.0,0.00011369,2]
[352108552,1738950647941,-500.0,0.00011369,2]
[352108555,1738950647950,-372.826846,0.00011369,2]
[352108557,1738950647960,-500.0,0.00011369,2]
[352108559,1738950647969,-372.826846,0.00011369,2]
[352108561,1738950647978,-500.0,0.00011369,2]
[352108563,1738950647989,-500.0,0.00011369,2]
[352108565,1738950647998,-500.0,0.00011369,2]
[352108566,1738950648007,-500.0,0.00011369,2]
[352108568,1738950648016,-1368.1,0.00011369,2]
[352108569,1738950648025,-617.14,0.00011369,2]
[352108571,1738950648035,-843.95,0.00011369,2]
[352108572,1738950648045,-500.0,0.00011369,2]
[352108574,1738950648056,-546.88,0.00011369,2]
[352108575,1738950648065,-500.0,0.00011369,2]
[352108577,1738950648075,-167.55,0.00011369,2]
[352108579,1738950648084,-1454.058368,0.00011369,2]
[352108580,1738950648094,-1454.058368,0.00011369,2]
[352108582,1738950648103,-500.0,0.00011369,2]
[352108583,1738950648113,-608.77,0.00011369,2]
[352108585,1738950648122,-557.83,0.00011369,2]
[352108586,1738950648131,-358.88,0.00011369,2]
[352108587,1738950648141,-500.0,0.00011369,2]
[352108589,1738950648151,-500.0,0.00011369,2]
[352108590,1738950648161,-500.0,0.00011369,2]
[352108592,1738950648170,-230.458389,0.00011369,2]
[352108593,1738950648180,-500.0,0.00011369,2]
[352108595,1738950648190,-1395.57,0.00011369,2]
[352108596,1738950648199,-230.458389,0.00011369,2]
[352108598,1738950648210,-259.12,0.00011369,2]
[352108600,1738950648220,-2046.032792,0.00011369,2]
[352108601,1738950648229,-500.0,0.00011369,2]
[352108603,1738950648242,-2046.032792,0.00011369,2]
[352108605,1738950648253,-909.48,0.00011369,2]
[352108606,1738950648264,-500.0,0.00011369,2]
[352108608,1738950648275,-500.0,0.00011369,2]
[352108610,1738950648286,-500.0,0.00011369,2]
[352108611,1738950648297,-608.5,0.00011369,2]
[352108613,1738950648307,-1024.26,0.00011369,2]
[352108614,1738950648317,-430.85297543,0.00011369,2]
[352108616,1738950648327,-500.0,0.00011369,2]
[352108618,1738950648337,-895.68,0.00011369,2]
[352108619,1738950648347,-500.0,0.00011369,2]
[352108621,1738950648357,-729.946372,0.00011369,2]
[352108622,1738950648367,-729.946372,0.00011369,2]
[352108624,1738950648377,-500.0,0.00011369,2]
[352108626,1738950648388,-500.0,0.00011369,2]
[352108627,1738950648397,-770.39,0.00011369,2]
[352108629,1738950648407,-500.0,0.00011369,2]
[352108631,1738950648418,-525.17,0.00011369,2]
[352108632,1738950648428,-151.0,0.00011369,2]
[352108634,1738950648440,-500.0,0.00011369,2]
[352108635,1738950648451,-399.396092,0.00011369,2]
[352108637,1738950648461,-399.396092,0.00011369,2]
[352108638,1738950648472,-500.0,0.00011369,2]
[352108640,1738950648483,-500.0,0.00011369,2]
[352108642,1738950648495,-316.59809591,0.00011369,2]
[352108643,1738950648506,-500.0,0.00011369,2]
[352108645,1738950648516,-536.46751517,0.00011369,2]
[352108647,1738950648527,-500.0,0.00011369,2]
[352108648,1738950648537,-500.0,0.00011369,2]
[352108650,1738950648548,-456.78622391,0.00011369,2]
[352108651,1738950648558,-978.66,0.00011369,2]
[352108653,1738950648569,-243.85592244,0.00011369,2]
[352108655,1738950648579,-201.3442892,0.00011369,2]
[352108656,1738950648590,-855.14,0.00011369,2]
[352108658,1738950648601,-524.17210782,0.00011369,2]
[352108659,1738950648611,-996.6,0.00011369,2]
[352108661,1738950648622,-500.0,0.00011369,2]
[352108663,1738950648633,-666.49,0.00011369,2]
[352108664,1738950648644,-1127.86,0.00011369,2]
[352108666,1738950648660,-958.14,0.00011369,2]
[352108668,1738950648670,-531.31439289,0.00011369,2]
[352108669,1738950648680,-500.0,0.00011369,2]
[352108671,1738950648691,-500.0,0.00011369,2]
[352108672,1738950648701,-500.0,0.00011369,2]
[352108674,1738950648711,-1407.42,0.00011369,2]
[352108676,1738950648720,-680.44,0.00011369,2]
[352108677,1738950648732,-500.0,0.00011369,2]
[352108679,1738950648746,-500.0,0.00011369,2]
[352108680,1738950648757,-500.0,0.00011369,2]
[352108682,1738950648767,-500.0,0.00011369,2]
[352108684,1738950648777,-500.0,0.00011369,2]
[352108685,1738950648787,-500.0,0.00011369,2]
[352108687,1738950648798,-520.1,0.00011369,2]
[352108688,1738950648810,-500.0,0.00011369,2]
[352108690,1738950648820,-500.0,0.00011369,2]
[352108692,1738950648829,-500.0,0.00011369,2]
[352108693,1738950648839,-500.0,0.00011369,2]
[352108695,1738950648849,-3160.98,0.00011369,2]
[352108696,1738950648859,-500.0,0.00011369,2]
[352108698,1738950648869,-4007.03,0.00011369,2]
[352108700,1738950648879,-500.0,0.00011369,2]
[352108701,1738950648890,-500.0,0.00011369,2]
[352108703,1738950648900,-876.32,0.00011369,2]
[352108705,1738950648910,-500.0,0.00011369,2]
[352108706,1738950648920,-541.97166922,0.00011369,2]
[352108708,1738950648930,-1101.319346,0.00011369,2]
[352108709,1738950648940,-500.0,0.00011369,2]
[352108711,1738950648951,-799.54,0.00011369,2]
[352108713,1738950648961,-1101.319346,0.00011369,2]
[352108714,1738950648971,-500.0,0.00011369,2]
[352108716,1738950648982,-500.0,0.00011369,2]
[352108717,1738950648994,-500.0,0.00011369,2]
[352108719,1738950649004,-1623.13,0.00011369,2]
[352108721,1738950649013,-766.62,0.00011369,2]
[352108722,1738950649022,-151.0,0.00011369,2]
[352108724,1738950649032,-500.0,0.00011369,2]
[352108725,1738950649041,-340.226188,0.00011369,2]
[352108727,1738950649051,-201.88561725,0.00011369,2]
[352108729,1738950649060,-151.0,0.00011369,2]
[352108731,1738950649070,-500.0,0.00011369,2]
[352108733,1738950649079,-340.226188,0.00011369,2]
[352108735,1738950649089,-292.733967,0.00011369,2]
[352108737,1738950649098,-500.0,0.00011369,2]
[352108738,1738950649107,-500.0,0.00011369,2]
[352108739,1738950649117,-292.733967,0.00011369,2]
[352108740,1738950649126,-500.0,0.00011369,2]
[352108741,1738950649135,-500.0,0.00011369,2]
[352108742,1738950649144,-500.0,0.00011369,2]
[352108743,1738950649154,-869.02,0.00011369,2]
[352108744,1738950649164,-674.74,0.00011369,2]
[352108745,1738950649173,-500.0,0.00011369,2]
[352108746,1738950649183,-4911.58,0.00011369,2]
[352108747,1738950649192,-500.0,0.00011369,2]
[352108748,1738950649202,-500.0,0.00011369,2]
[352108749,1738950649211,-683.46,0.00011369,2]
[352108750,1738950649221,-2199.78,0.00011369,2]
[352108751,1738950649231,-500.0,0.00011369,2]
[352108752,1738950649243,-500.0,0.00011369,2]
[352108753,1738950649253,-500.0,0.00011369,2]
[352108754,1738950649263,-1321.95,0.00011369,2]
[352108755,1738950649272,-4990.07,0.00011369,2]
[352108756,1738950649282,-500.0,0.00011369,2]
[352108757,1738950649291,-1092.696352,0.00011369,2]
[352108759,1738950649301,-500.0,0.00011369,2]
[352108760,1738950649311,-10470.81,0.00011369,2]
[352108761,1738950649319,-1092.696352,0.00011369,2]
[352108763,1738950649327,-9338.0,0.00011369,2]
[352108764,1738950649335,-500.0,0.00011369,2]
[352108766,1738950649345,-888.32,0.00011369,2]
[352108768,1738950649355,-500.0,0.00011369,2]
[352108770,1738950649365,-411.12,0.00011369,2]
[352108772,1738950649375,-500.0,0.00011369,2]
[352108774,1738950649384,-500.0,0.00011369,2]
[352108776,1738950649394,-4366.96,0.00011369,2]
[352108778,1738950649404,-500.0,0.00011369,2]
[352108780,1738950649414,-529.78,0.00011369,2]
[352108782,1738950649423,-234.99353,0.00011369,2]
[352108784,1738950649436,-500.0,0.00011369,2]
[352108786,1738950649445,-461.78918939,0.00011369,2]
[352108788,1738950649455,-500.0,0.00011369,2]
[352108790,1738950649464,-500.0,0.00011369,2]
[352108792,1738950649474,-531.59,0.00011369,2]
[352108794,1738950649483,-500.0,0.00011369,2]
[352108796,1738950649495,-234.99353,0.00011369,2]
[352108798,1738950649504,-500.0,0.00011369,2]
[352108800,1738950649513,-500.0,0.00011369,2]
[352108802,1738950649522,-500.0,0.00011369,2]
[352108804,1738950649531,-500.0,0.00011369,2]
[352108806,1738950649540,-522.44,0.00011369,2]
[352108807,1738950649549,-500.0,0.00011369,2]
[352108808,1738950649672,-500.0,0.00011369,2]
[352108809,1738950649682,-500.0,0.00011369,2]
[352108810,1738950649692,-500.0,0.00011369,2]
[352108811,1738950649701,-500.0,0.00011369,2]
[352108812,1738950649710,-500.0,0.00011369,2]
[352108813,1738950649719,-500.0,0.00011369,2]
[352108814,1738950649729,-1156.96,0.00011369,2]
[352108815,1738950649739,-500.0,0.00011369,2]
[352108816,1738950649748,-500.0,0.00011369,2]
[352108817,1738950649757,-525.76,0.00011369,2]
[352108818,1738950649766,-500.0,0.00011369,2]
[352108819,1738950649775,-1899.91,0.00011369,2]
[352108820,1738950649784,-500.0,0.00011369,2]
[352108821,1738950649793,-2200.03,0.00011369,2]
[352108822,1738950649803,-500.0,0.00011369,2]
[352108823,1738950649812,-1015.7,0.00011369,2]
[352108824,1738950649822,-491.95714354,0.00011369,2]
[352108825,1738950649831,-633.6,0.00011369,2]
[352108826,1738950649840,-500.0,0.00011369,2]
[352108827,1738950649849,-502.73058942,0.00011369,2]
[352108828,1738950649858,-500.0,0.00011369,2]
[352108829,1738950649868,-500.0,0.00011369,2]
[352108830,1738950649877,-500.0,0.00011369,2]
[352108831,1738950649886,-2217.79,0.00011369,2]
[352108832,1738950649896,-500.0,0.00011369,2]
[352108833,1738950649905,-500.0,0.00011369,2]
[352108834,1738950649914,-588.55,0.00011369,2]
[352108835,1738950649924,-500.0,0.00011369,2]
[352108836,1738950649934,-42882.94,0.00011369,2]
[352108837,1738950649943,-500.0,0.00011369,2]
[352108838,1738950649953,-500.0,0.00011369,2]
[352108839,1738950649962,-5616.92,0.00011369,2]
[352108840,1738950649973,-151.0,0.00011369,2]
[352108841,1738950649982,-500.0,0.00011369,2]
[352108843,1738950649992,-961.33,0.00011369,2]
[352108844,1738950650002,-500.0,0.00011369,2]
[352108845,1738950650011,-793.477982,0.00011369,2]
[352108846,1738950650020,-788.54,0.00011369,2]
[352108847,1738950650030,-2028.94,0.00011369,2]
[352108848,1738950650039,-14404.15,0.00011369,2]
[352108849,1738950650048,-500.0,0.00011369,2]
[352108850,1738950650057,-793.477982,0.00011369,2]
[352108851,1738950650067,-500.0,0.00011369,2]
[352108852,1738950650076,-7043.68,0.00011369,2]
[352108853,1738950650086,-2546.25,0.00011369,2]
[352108854,1738950650095,-500.0,0.00011369,2]
[352108855,1738950650105,-500.0,0.00011369,2]
[352108856,1738950650114,-500.0,0.00011369,2]
[352108858,1738950650124,-500.0,0.00011369,2]
[352108860,1738950650134,-500.0,0.00011369,2]
[352108862,1738950650144,-1043.44,0.00011369,2]
[352108864,1738950650153,-500.0,0.00011369,2]
[352108866,1738950650163,-5737.61,0.00011369,2]
[352108868,1738950650172,-500.0,0.00011369,2]
[352108870,1738950650181,-2146.56,0.00011369,2]
[352108871,1738950650192,-500.0,0.00011369,2]
[352108873,1738950650201,-500.0,0.00011369,2]
[352108875,1738950650211,-500.0,0.00011369,2]
[352108877,1738950650220,-693.43,0.00011369,2]
[352108878,1738950650231,-500.0,0.00011369,2]
[352108880,1738950650241,-500.0,0.00011369,2]
[352108882,1738950650250,-2939.94,0.00011369,2]
[352108884,1738950650258,-500.0,0.00011369,2]
[352108885,1738950650267,-500.0,0.00011369,2]
[352108886,1738950650276,-572.15,0.00011369,2]
[352108887,1738950650285,-500.0,0.00011369,2]
[352108888,1738950650294,-500.0,0.00011369,2]
[352108889,1738950650304,-500.0,0.00011369,2]
[352108890,1738950650313,-500.0,0.00011369,2]
[352108891,1738950650322,-1608.85,0.00011369,2]
[352108892,1738950650332,-2793.36,0.00011369,2]
[352108893,1738950650341,-500.0,0.00011369,2]
[352108894,1738950650350,-500.0,0.00011369,2]
[352108895,1738950650360,-500.0,0.00011369,2]
[352108896,1738950650369,-500.0,0.00011369,2]
[352108897,1738950650379,-557.93059378,0.00011369,2]
[352108898,1738950650387,-398.653821,0.00011369,2]
[352108899,1738950650397,-6257.88,0.00011369,2]
[352108900,1738950650406,-398.653821,0.00011369,2]
[352108901,1738950650415,-500.0,0.00011369,2]
[352108902,1738950650425,-526.23267628,0.00011369,2]
[352108903,1738950650434,-754.7,0.00011369,2]
[352108904,1738950650443,-500.0,0.00011369,2]
[352108905,1738950650452,-1614.6,0.00011369,2]
[352108906,1738950650462,-500.0,0.00011369,2]
[352108907,1738950650471,-500.0,0.00011369,2]
[352108908,1738950650480,-500.0,0.00011369,2]
[352108909,1738950650491,-500.0,0.00011369,2]
[352108910,1738950650501,-500.0,0.00011369,2]
[352108911,1738950650510,-500.0,0.00011369,2]
[352108912,1738950650519,-500.0,0.00011369,2]
[352108913,1738950650528,-1592.7916304,0.0001139,2]
[352108914,1738950650538,-151.0,0.000115,2]
[352108915,1738950650547,-151.0,0.000115,2]
[352108916,1738950650556,-184.9218705,0.00011505,2]
[352108917,1738950650566,-304.854293,0.00011505,2]
[352108918,1738950650575,-304.854293,0.00011505,2]
[352108919,1738950650585,-2397.999275,0.00011505,2]
[352108920,1738950650594,-2397.999275,0.00011505,2]
[352108921,1738950650604,-500.0,0.00011505,2]
[352108922,1738950650613,-18928.19,0.00011505,2]
[352108923,1738950650622,-1612.79,0.00011505,2]
[352108924,1738950650631,-500.0,0.00011505,2]
[352108925,1738950650641,-910.53,0.00011505,2]
[352108927,1738950650650,-907.47850079,0.00011505,2]
[352108937,1738950650952,-1504.53,0.00010958,2]
[352108938,1738950650962,-366.69338121,0.00011505,2]
[352108939,1738950650971,-1274.171882,0.00011505,2]
[352108940,1738950650980,-500.0,0.00011505,2]
[352108941,1738950650991,-3628.15844657,0.00011505,2]
[352108942,1738950651003,-1756.39176766,0.00011505,2]
[352108943,1738950651014,-763.062,0.00011505,2]
[352108956,1738950651369,-1004.97,0.00010958,2]
[352108957,1738950651378,-500.0,0.00010958,2]
[352108959,1738950651387,-500.0,0.00010958,2]
[352108960,1738950651396,-1504.53,0.00011095,2]
[352108962,1738950651405,-1004.97,0.00011095,2]
[352108964,1738950651415,-500.0,0.00011095,2]
[352108966,1738950651424,-1504.53,0.00011232,2]
[352108968,1738950651434,-1004.97,0.00011232,2]
[352108969,1738950651444,-500.0,0.00011232,2]
[352108970,1738950651454,-1504.53,0.00011369,2]
[352108971,1738950651463,-1004.97,0.00011369,2]
[352108972,1738950651472,-2691.47221374,0.00011505,2]
[352108973,1738950651495,-500.07328576,0.00011505,2]
[352108974,1738950651941,-407.57474546,0.00010953,2]
[352108975,1738950651951,-444.97405459,0.00011369,2]
[352108976,1738950652159,-1410.25828193,0.00010959,2]
[352108977,1738950652170,-347.93171807,0.00010959,2]
[352108978,1738950652180,-55.02594541,0.00011369,2]
[352108979,1738950652190,-847.46228627,0.00011505,2]
[352108980,1738950652199,-151.0,0.00011506,2]
[352108981,1738950652208,-151.0,0.00011506,2]
[352108982,1738950652217,-151.0,0.00011506,2]
[352108983,1738950652226,-151.0,0.00011506,2]
[352108984,1738950652235,-151.0,0.00011506,2]
[352108985,1738950652245,-151.0,0.00011506,2]
[352108986,1738950652254,-151.0,0.00011506,2]
[352108987,1738950652263,-151.0,0.00011506,2]
[352108988,1738950652273,-345.457008,0.00011506,2]
[352108989,1738950652282,-395.194243,0.00011506,2]
[352108990,1738950652293,-345.457008,0.00011506,2]
[352108991,1738950652302,-395.194243,0.00011506,2]
[352108992,1738950652312,-151.0,0.00011506,2]
[352108993,1738950652323,-334.405505,0.00011506,2]
[352108994,1738950652332,-334.405505,0.00011506,2]
[352108995,1738950652341,-500.0,0.00011506,2]